bitfinex-derivatives/quotes_SOLF0:USTF0_20250211
["timestamp","ask_amount","ask_price","bid_price","bid_amount"]
[1739256126266,4.9181622,204.75,204.71,5.83164799]
[1739256127363,0.0348622,204.75,204.71,5.83164799]
[1739256128865,4.8835,204.74,204.71,0.03502468]
[1739256129057,5.83148551,204.75,204.71,0.03502468]
[1739256129766,5.79662331,204.73,204.71,0.03502468]
[1739256130868,4.8839,204.72,204.71,0.03502468]
[1739256132670,4.8846,204.7,204.65,5.79662331]
[1739256132869,4.8846,204.7,204.63,5.79662331]
[1739256133068,4.8846,204.7,204.63,10.68262331]
[1739256133266,5.79662331,204.71,204.63,10.68262331]
[1739256133570,5.79662331,204.71,204.64,4.8858]
[1739256134071,0.03759361,204.7,204.65,5.82757828]
[1739256135369,0.03759361,204.7,204.69,5.79662331]
[1739256135966,191.0,204.78,204.69,5.79662331]
[1739256136164,3.0374,204.79,204.74,5.79662331]
[1739256136474,4.8818,204.82,204.76,5.79662331]
[1739256137169,0.03232303,204.81,204.78,5.79662331]
[1739256137776,0.03232303,204.81,204.77,0.03490339]
[1739256138275,5.82894634,204.81,204.77,0.03490339]
[1739256139877,5.79662331,204.79,204.77,0.03490339]
[1739256140778,10.67892331,204.79,204.77,0.03490339]
[1739256142274,5.79662331,204.79,204.77,0.03490339]
[1739256142578,4.8825,204.78,204.77,0.03490339]
[1739256142772,5.79662331,204.79,204.68,5.79662331]
[1739256143077,5.79662331,204.75,204.68,5.79662331]
[1739256143880,5.79662331,204.75,204.69,0.0315951]
[1739256143881,0.03604054,204.74,204.69,0.0315951]
[1739256145780,0.03604054,204.74,204.7,5.79662331]
[1739256147584,0.03604054,204.74,204.71,4.8842]
[1739256148287,0.03604054,204.74,204.72,5.79662331]
[1739256149280,0.03604054,204.74,204.73,4.8837]
[1739256150084,0.03604054,204.74,204.72,10.68052331]
[1739256150485,0.03604054,204.74,204.71,4.8842]
[1739256150885,0.03604054,204.74,204.7,5.79662331]
[1739256151187,0.03604054,204.74,204.7,10.68092331]
[1739256154086,0.03604054,204.74,204.71,4.8841]
[1739256154487,0.03604054,204.74,204.7,5.79662331]
[1739256154686,0.03604054,204.74,204.72,5.79662331]
[1739256155292,0.03604054,204.74,204.73,4.8837]
[1739256162496,0.03604054,204.74,204.72,10.68052331]
[1739256162691,0.03604054,204.74,204.72,5.79662331]
[1739256163900,0.03604054,204.74,204.7,5.79662331]
[1739256164090,0.03604054,204.74,204.69,0.0315951]
[1739256165806,0.03604054,204.74,204.7,4.8844]
[1739256166001,5.79662331,204.73,204.69,0.0315951]
[1739256167705,0.03604054,204.74,204.69,0.0315951]
[1739256168807,0.03604054,204.74,204.69,4.9161951]
[1739256169204,0.03604054,204.74,204.69,0.0315951]
[1739256172108,10.68042331,204.73,204.69,0.0315951]
[1739256175911,5.79662331,204.73,204.69,0.0315951]
[1739256179713,0.03604054,204.74,204.69,0.0315951]
[1739256181416,0.03604054,204.74,204.7,5.79662331]
[1739256182111,0.03604054,204.74,204.7,10.68102331]
[1739256182315,0.03604054,204.74,204.7,5.79662331]
[1739256183819,0.03604054,204.74,204.72,4.8839]
[1739256184117,0.03604054,204.74,204.72,10.68052331]
[1739256184414,0.03604054,204.74,204.73,4.8837]
[1739256187413,0.03604054,204.74,204.7,5.79662331]
[1739256188220,0.03604054,204.74,204.71,4.8839]
[1739256188413,0.03604054,204.74,204.7,5.79662331]
[1739256188619,0.03604054,204.74,204.72,5.79662331]
[1739256189119,0.03604054,204.74,204.73,4.8837]
[1739256195221,3.0149,204.86,204.72,5.79662331]
[1739256195433,5.79662331,204.9,204.84,5.79662331]
[1739256195632,1.4809,204.91,204.84,5.79662331]
[1739256195932,1.4809,204.91,204.88,4.88]
[1739256196131,1.4809,204.91,204.86,5.79662331]
[1739256196431,1.5005,204.93,204.92,4.8792]
[1739256201634,0.03548461,204.95,204.94,4.8787]
[1739256209342,0.03548461,204.95,204.9,0.0338428]
[1739256210640,0.03548461,204.95,204.93,4.8789]
[1739256210840,0.03548461,204.95,204.9,0.0338428]
[1739256211047,0.03548461,204.95,204.91,4.8793]
[1739256211347,0.03548461,204.95,204.9,0.0338428]
[1739256212145,0.03548461,204.95,204.93,4.8787]
[1739256212646,0.03548461,204.95,204.9,0.0338428]
[1739256212948,0.03548461,204.95,204.94,4.8787]
[1739256215543,0.03548461,204.95,204.9,5.83046611]
[1739256215739,0.03548461,204.95,204.93,4.8789]
[1739256218051,5.79662331,204.94,204.91,4.8793]
[1739256219250,5.79662331,204.94,204.9,0.0338428]
[1739256220752,5.79662331,204.94,204.92,4.8791]
[1739256222653,5.79662331,204.94,204.9,4.9132428]
[1739256222853,5.79662331,204.94,204.9,0.0338428]
[1739256223754,5.79662331,204.94,204.91,4.8793]
[1739256227955,5.79662331,204.94,204.92,4.8791]
[1739256228357,0.03548461,204.95,204.9,0.0338428]
[1739256229157,0.03548461,204.95,204.91,4.8793]
[1739256229361,0.03548461,204.95,204.9,0.0338428]
[1739256230958,0.03548461,204.95,204.92,4.879]
[1739256231163,0.03548461,204.95,204.9,0.0338428]
[1739256231357,0.03548461,204.95,204.93,4.8789]
[1739256232458,0.03548461,204.95,204.92,4.8791]
[1739256233557,0.03548461,204.95,204.93,4.8789]
[1739256234162,0.03548461,204.95,204.94,4.8787]
[1739256234358,0.03548461,204.95,204.9,5.83046611]
[1739256234758,0.03548461,204.95,204.93,4.8789]
[1739256235462,0.03548461,204.95,204.9,0.0338428]
[1739256235667,5.79662331,204.94,204.92,4.8791]
[1739256237663,5.79662331,204.94,204.9,0.0338428]
[1739256237864,0.03548461,204.95,204.94,4.8787]
[1739256239264,0.03548461,204.95,204.93,4.8789]
[1739256242369,0.03548461,204.95,204.92,4.8791]
[1739256243476,0.03548461,204.95,204.9,0.0338428]
[1739256244077,0.03548461,204.95,204.91,4.8793]
[1739256244281,0.03548461,204.95,204.9,0.0338428]
[1739256244668,0.03548461,204.95,204.93,4.8789]
[1739256247180,0.03548461,204.95,204.92,4.8791]
[1739256247682,0.03548461,204.95,204.9,0.0338428]
[1739256248382,0.03548461,204.95,204.92,4.8789]
[1739256249182,0.03548461,204.95,204.9,0.0338428]
[1739256251482,0.03548461,204.95,204.9,5.83046611]
[1739256251684,0.03548461,204.95,204.94,4.8787]
[1739256261185,8.461e-05,204.95,204.94,10.67532331]
[1739256261792,8.461e-05,204.95,204.94,4.8787]
[1739256265295,8.461e-05,204.95,204.94,10.67532331]
[1739256274401,5.79662331,205.1,204.94,5.79662331]
[1739256274703,5.79662331,205.1,205.03,5.79662331]
[1739256274896,5.79662331,205.1,205.01,5.79662331]
[1739256275200,5.79662331,205.1,205.03,4.8765]
[1739256275599,0.03405801,205.09,205.04,0.03548297]
[1739256276397,5.79662331,205.08,205.04,0.03548297]
[1739256277302,5.79662331,205.06,205.04,0.03548297]
[1739256278103,5.79662331,205.08,205.04,0.03548297]
[1739256278596,4.8757,205.07,205.04,0.03548297]
[1739256280506,10.67202331,205.08,205.04,0.03548297]
[1739256280801,5.79662331,205.08,205.04,0.03548297]
[1739256281001,0.03405801,205.09,205.04,0.03548297]
[1739256281201,0.03405801,205.09,205.04,4.91178297]
[1739256282502,0.03405801,205.09,205.05,4.8759]
[1739256282704,0.03405801,205.09,205.04,0.03548297]
[1739256282898,0.03405801,205.09,205.05,5.79662331]
[1739256284505,0.03405801,205.09,205.07,4.8755]
[1739256284807,0.03405801,205.09,205.05,5.79662331]
[1739256285906,0.03405801,205.09,205.07,4.8754]
[1739256286698,0.03405801,205.09,205.07,5.79662331]
[1739256287006,0.03405801,205.09,205.08,4.8753]
[1739256297315,9.4113,205.19,205.07,5.79662331]
[1739256297510,4.5384,205.19,205.15,5.79662331]
[1739256297711,9.4111,205.19,205.15,5.79662331]
[1739256298016,4.5384,205.19,205.13,5.79662331]
[1739256298518,4.90802549,205.18,205.14,0.03342297]
[1739256298817,0.03502549,205.18,205.14,0.03342297]
[1739256299220,4.90802549,205.18,205.14,0.03342297]
[1739256299821,4.90802549,205.18,205.15,5.79662331]
[1739256300523,0.03502549,205.18,205.17,5.79662331]
[1739256300917,0.03502549,205.18,205.14,0.03342297]
[1739256300918,0.03502549,205.18,205.15,5.79662331]
[1739256301119,0.03502549,205.18,205.17,5.79662331]
[1739256303117,0.03502549,205.18,205.17,10.66982331]
[1739256303319,7.36962331,205.28,205.17,5.79662331]
[1739256303517,7.36962331,205.28,205.22,5.79662331]
[1739256304522,0.03290806,205.27,205.23,0.03713868]
[1739256305222,4.8715,205.24,205.23,0.03713868]
[1739256305419,4.8715,205.24,205.18,5.79662331]
[1739256306125,5.79662331,205.26,205.18,5.79662331]
[1739256306423,10.66782331,205.26,205.2,5.79662331]
[1739256306625,0.03337285,205.24,205.2,5.83220799]
[1739256307222,0.03337285,205.24,205.2,0.03558468]
[1739256307418,0.03337285,205.24,205.22,5.79662331]
[1739256307818,0.03337285,205.24,205.23,4.8718]
[1739256308024,1.573,205.28,205.22,5.79662331]
[1739256308327,2.9972,205.29,205.27,5.79662331]
[1739256308726,1.5496,205.29,205.27,5.79662331]
[1739256312028,0.03551934,205.3,205.27,10.66742331]
[1739256312429,0.03551934,205.3,205.28,4.8706]
[1739256312821,0.03551934,205.3,205.29,5.79662331]
[1739256313130,0.03551934,205.3,205.29,10.66702331]
[1739256315135,12.12272331,205.4,205.31,4.8697]
[1739256315328,7.25492331,205.4,205.34,5.79662331]
[1739256315528,1.4583,205.4,205.36,5.79662331]
[1739256316337,0.03562017,205.4,205.38,5.79662331]
[1739256316837,0.03562017,205.4,205.39,4.868]
[1739256318142,5.79662331,205.52,205.39,3.42]
[1739256318327,5.79662331,205.52,205.45,5.79662331]
[1739256318833,4.8647,205.53,205.48,5.79662331]
[1739256319036,86.93417738,205.57,205.5,5.79662331]
[1739256319234,0.03392259,205.53,205.5,5.79662331]
[1739256321041,0.03392259,205.53,205.48,5.82784539]
[1739256321243,0.03392259,205.53,205.48,0.03122208]
[1739256321736,0.03392259,205.53,205.5,5.79662331]
[1739256322144,0.03392259,205.53,205.52,5.79662331]
[1739256323245,0.03392259,205.53,205.48,0.03122208]
[1739256323639,4.8656,205.49,205.48,0.03122208]
[1739256324340,5.79662331,205.5,205.42,5.79662331]
[1739256325638,0.03143883,205.48,205.44,0.03196107]
[1739256326044,4.8667,205.45,205.44,0.03196107]
[1739256327947,5.79662331,205.46,205.38,5.79662331]
[1739256328240,5.79662331,205.48,205.4,5.79662331]
[1739256328444,4.8661,205.47,205.42,5.79662331]
[1739256328842,5.79662331,205.5,205.42,5.79662331]
[1739256329048,4.5333,205.52,205.42,5.79662331]
[1739256329049,0.03413871,205.47,205.46,5.79662331]
[1739256330853,0.03413871,205.47,205.44,0.03405915]
[1739256334155,4.8669,205.44,205.37,13.82368493]
[1739256334350,0.03413871,205.47,205.34,8.95528493]
[1739256334553,8.95528493,205.45,205.34,8.95528493]
[1739256334854,8.95528493,205.45,205.31,8.95528493]
[1739256335553,0.03473206,205.4,205.36,0.03537282]
[1739256337152,4.8683,205.38,205.36,0.03537282]
[1739256337353,0.03473206,205.4,205.3,4.87]
[1739256337546,0.03473206,205.4,205.28,8.95528493]
[1739256337752,8.95528493,205.39,205.28,8.95528493]
[1739256337952,8.95528493,205.39,205.25,8.95528493]
[1739256338159,4.869,205.35,205.26,4.871]
[1739256338351,8.95528493,205.39,205.26,4.871]
[1739256338558,0.03531771,205.33,205.28,0.03695008]
[1739256339658,4.87,205.31,205.22,8.95528493]
[1739256340157,1.5606,205.32,205.22,8.95528493]
[1739256340362,6.4303,205.32,205.25,4.8713]
[1739256340960,0.03452477,205.31,205.26,0.03437843]
[1739256342455,8.95528493,205.3,205.19,8.95528493]
[1739256343364,4.8705,205.29,205.22,4.8718]
[1739256343556,1.5606,205.32,205.19,8.95528493]
[1739256343761,0.03727798,205.27,205.22,0.03489014]
[1739256344063,4.90807798,205.27,205.22,0.03489014]
[1739256344565,0.03727798,205.27,205.22,0.03489014]
[1739256344765,4.8711,205.26,205.22,0.03489014]
[1739256345662,0.03727798,205.27,205.22,0.03489014]
[1739256348270,4.90817798,205.27,205.22,0.03489014]
[1739256348466,0.03727798,205.27,205.22,0.03489014]
[1739256349262,0.03727798,205.27,205.16,8.95528493]
[1739256349462,4.872,205.22,205.17,4.873]
[1739256349669,8.95528493,205.27,205.13,8.95528493]
[1739256350366,4.90438864,205.22,205.18,0.03590918]
[1739256350669,0.03208864,205.22,205.18,0.03590918]
[1739256351066,4.8725,205.21,205.18,0.03590918]
[1739256351367,0.03208864,205.22,205.18,0.03590918]
[1739256351567,4.90438864,205.22,205.18,0.03590918]
[1739256352971,0.03208864,205.22,205.18,0.03590918]
[1739256353173,3.1127,205.21,205.1,62.43318975]
[1739256353467,4.873,205.18,205.13,4.8742]
[1739256353676,4.873,205.18,205.1,62.43318975]
[1739256354069,4.8732,205.17,205.1,62.43318975]
[1739256354272,0.03487768,205.16,205.12,0.02024387]
[1739256355674,4.8737,205.15,205.12,0.02024387]
[1739256355870,0.03487768,205.16,205.12,0.02024387]
[1739256357775,4.8741,205.14,205.12,0.02024387]
[1739256358879,4.8742,205.13,205.12,0.02024387]
[1739256359075,4.8742,205.13,205.04,8.95528493]
[1739256359282,8.95528493,205.15,205.01,8.95528493]
[1739256359473,4.8749,205.11,205.01,8.95528493]
[1739256359782,1.5625,205.17,205.04,8.95528493]
[1739256360376,0.03611845,205.13,205.0,8.95528493]
[1739256360574,4.8757,205.07,205.01,4.877]
[1739256360776,8.95528493,205.11,204.97,63.30328306]
[1739256360976,0.03456279,205.08,204.97,63.30328306]
[1739256361183,0.03456279,205.08,205.0,8.95528493]
[1739256361382,0.03456279,205.08,205.03,8.95528493]
[1739256361682,0.03456279,205.08,205.06,4.8756]
[1739256361981,0.03456279,205.08,205.06,8.95528493]
[1739256362175,1.5625,205.17,205.06,8.95528493]
[1739256362372,1.5625,205.17,205.11,8.95528493]
[1739256363381,0.03631376,205.16,205.12,0.03082759]
[1739256363789,0.03631376,205.16,205.13,4.8741]
[1739256364079,0.03631376,205.16,205.12,0.03082759]
[1739256364278,0.03631376,205.16,205.15,4.8737]
[1739256365083,1.376e-05,205.16,205.15,4.8737]
[1739256366279,191.0,205.26,205.2,4.8723]
[1739256366479,191.0,205.26,205.12,0.03082759]
[1739256366480,3.0856,205.29,205.18,8.95528493]
[1739256367282,3.0856,205.29,205.22,4.872]
[1739256367684,0.0330296,205.26,205.21,0.03675939]
[1739256367879,0.0330296,205.26,205.21,8.99204432]
[1739256369189,0.0330296,205.26,205.25,4.8713]
[1739256369391,2.9628,205.37,205.24,8.95528493]
[1739256369589,2.9628,205.37,205.3,4.87]
[1739256370385,7.8313,205.37,205.31,4.8699]
[1739256370591,0.03096907,205.36,205.31,0.03411096]
[1739256370794,0.03096907,205.36,205.31,4.90381096]
[1739256370993,0.03096907,205.36,205.31,0.03411096]
[1739256372193,8.986254,205.36,205.31,0.03411096]
[1739256372392,4.8696,205.33,205.31,0.03411096]
[1739256372797,8.986254,205.36,205.31,0.03411096]
[1739256373500,4.8697,205.32,205.31,0.03411096]
[1739256374199,4.8706,205.29,205.19,3.42]
[1739256374796,4.8706,205.29,205.22,4.872]
[1739256374998,4.8706,205.28,205.22,4.872]
[1739256375394,0.03576706,205.27,205.23,0.0352941]
[1739256376296,4.90656706,205.27,205.23,0.0352941]
[1739256377300,0.03576706,205.27,205.23,0.0352941]
[1739256378900,0.03576706,205.27,205.23,4.9070941]
[1739256379100,0.03576706,205.27,205.23,0.0352941]
[1739256379598,8.99105199,205.27,205.23,0.0352941]
[1739256380197,13.82688493,205.24,205.23,0.0352941]
[1739256380501,13.82688493,205.24,205.12,13.82948493]
[1739256380502,8.95528493,205.24,205.12,4.8742]
[1739256380799,4.873,205.18,205.11,4.8746]
[1739256381593,0.03129181,205.17,205.12,0.03511218]
[1739256382902,4.8735,205.16,205.12,0.03511218]
[1739256383300,0.03129181,205.17,205.12,0.03511218]
[1739256383501,4.90449181,205.17,205.12,0.03511218]
[1739256383796,0.03129181,205.17,205.12,0.03511218]
[1739256384098,4.8737,205.15,205.12,0.03511218]
[1739256384500,4.90469181,205.17,205.12,0.03511218]
[1739256384701,0.03129181,205.17,205.12,0.03511218]
[1739256385800,0.03129181,205.17,205.13,8.95528493]
[1739256386004,199.95528493,205.34,205.16,8.95528493]
[1739256386205,3.0675,205.33,205.2,8.95528493]
[1739256386400,4.8703,205.3,205.2,13.82758493]
[1739256386802,3.0675,205.33,205.2,8.95528493]
[1739256387109,0.03710348,205.29,205.24,0.03095356]
[1739256387304,8.95528493,205.28,205.24,0.03095356]
[1739256387710,8.95528493,205.28,205.14,12.37528493]
[1739256388010,13.82598493,205.28,205.19,4.8727]
[1739256388209,13.82598493,205.28,205.14,12.37528493]
[1739256388410,13.82598493,205.28,205.2,4.8723]
[1739256388708,8.95528493,205.28,205.17,8.95528493]
[1739256388909,0.03288569,205.26,205.22,0.03363639]
[1739256390411,4.8716,205.24,205.22,0.03363639]
[1739256390613,0.03288569,205.26,205.22,0.03363639]
[1739256390909,4.8713,205.25,205.22,0.03363639]
[1739256391305,0.03288569,205.26,205.22,0.03363639]
[1739256391508,4.8713,205.25,205.22,0.03363639]
[1739256394105,0.03288569,205.26,205.22,0.03363639]
[1739256395110,0.03288569,205.26,205.24,4.8713]
[1739256395511,0.03288569,205.26,205.23,4.8718]
[1739256395712,0.03288569,205.26,205.22,0.03363639]
[1739256396112,0.03288569,205.26,205.22,4.90543639]
[1739256396313,0.03288569,205.26,205.22,0.03363639]
[1739256397111,0.03288569,205.26,205.22,4.90543639]
[1739256397416,0.03288569,205.26,205.22,0.03363639]
[1739256398221,4.90398569,205.26,205.22,0.03363639]
[1739256398414,0.03288569,205.26,205.22,0.03363639]
[1739256400714,4.8714,205.25,205.22,0.03363639]
[1739256402120,0.03288569,205.26,205.24,4.8715]
[1739256402516,0.03288569,205.26,205.22,0.03363639]
[1739256402912,0.03288569,205.26,205.24,4.8714]
[1739256403117,0.03288569,205.26,205.22,0.03363639]
[1739256403518,0.03288569,205.26,205.25,4.8713]
[1739256405022,0.03288569,205.26,205.24,4.8715]
[1739256406423,0.03288569,205.26,205.22,0.03363639]
[1739256406622,0.03288569,205.26,205.25,4.8713]
[1739256411927,0.03288569,205.26,205.23,4.8716]
[1739256412426,0.03288569,205.26,205.22,0.03363639]
[1739256412623,0.03288569,205.26,205.22,4.90563639]
[1739256412824,0.03288569,205.26,205.22,0.03363639]
[1739256413425,0.03288569,205.26,205.22,9.00133263]
[1739256413733,0.03288569,205.26,205.24,4.8715]
[1739256414223,0.03288569,205.26,205.22,9.00133263]
[1739256414423,0.03288569,205.26,205.23,4.8718]
[1739256414823,0.03288569,205.26,205.22,0.03363639]
[1739256415322,4.90398569,205.26,205.22,0.03363639]
[1739256416226,0.03288569,205.26,205.22,0.03363639]
[1739256420333,0.03288569,205.26,205.22,4.90563639]
[1739256420722,0.03288569,205.26,205.22,0.03363639]
[1739256420929,0.03288569,205.26,205.23,4.8716]
[1739256422931,0.03288569,205.26,205.24,4.8715]
[1739256424132,0.03288569,205.26,205.22,0.03363639]
[1739256424735,0.03288569,205.26,205.22,4.90543639]
[1739256425027,0.03288569,205.26,205.22,0.03363639]
[1739256425330,0.03288569,205.26,205.25,4.8713]
[1739256425931,0.03288569,205.26,205.24,4.8715]
[1739256426127,0.03288569,205.26,205.22,0.03363639]
[1739256426634,0.03288569,205.26,205.24,4.8714]
[1739256426936,0.03288569,205.26,205.22,0.03363639]
[1739256428032,0.03288569,205.26,205.23,4.8717]
[1739256428338,0.03288569,205.26,205.22,0.03363639]
[1739256428732,0.03288569,205.26,205.22,4.90543639]
[1739256429042,0.03288569,205.26,205.22,0.03363639]
[1739256429735,0.03288569,205.26,205.25,4.8713]
[1739256431133,191.0,205.32,205.22,9.00133263]
[1739256431334,4.8699,205.31,205.26,4.8708]
[1739256431535,4.8699,205.31,205.22,8.96769624]
[1739256431732,191.0,205.32,205.22,8.96769624]
[1739256431938,195.8697,205.32,205.27,4.8708]
[1739256432536,191.03677215,205.32,205.27,0.03596922]
[1739256432731,0.03677215,205.32,205.27,0.03596922]
[1739256433739,0.03677215,205.32,205.31,4.8699]
[1739256436341,0.03677215,205.32,205.31,13.83759624]
[1739256436639,8.96769624,205.45,205.31,8.96769624]
[1739256436844,4.8675,205.42,205.31,8.96769624]
[1739256437144,8.96769624,205.45,205.31,8.96769624]
[1739256437442,4.8676,205.41,205.31,8.96769624]
[1739256437839,8.96769624,205.45,205.36,4.8685]
[1739256438040,4.8673,205.42,205.36,4.8685]
[1739256438244,0.03201583,205.43,205.38,0.03618407]
[1739256439843,4.868,205.39,205.38,0.03618407]
[1739256440343,4.8673,205.42,205.38,0.03618407]
[1739256440948,4.8678,205.4,205.38,0.03618407]
[1739256441748,4.868,205.39,205.38,0.03618407]
[1739256441952,0.03201583,205.43,205.38,0.03618407]
[1739256442952,0.03201583,205.43,205.39,4.8678]
[1739256443153,0.03201583,205.43,205.38,0.03618407]
[1739256444852,0.03201583,205.43,205.38,4.90438407]
[1739256446357,0.03201583,205.43,205.38,0.03618407]
[1739256446955,4.89911583,205.43,205.38,0.03618407]
[1739256447148,0.03201583,205.43,205.38,0.03618407]
[1739256447857,4.8677,205.41,205.38,0.03618407]
[1739256449958,0.03201583,205.43,205.38,0.03618407]
[1739256449959,4.868,205.39,205.38,0.03618407]
[1739256450159,1.5929,205.4,205.28,8.96769624]
[1739256450353,8.96769624,205.39,205.28,8.96769624]
[1739256450550,4.869,205.35,205.28,4.8706]
[1739256450750,8.96769624,205.39,205.25,10.42629624]
[1739256451355,0.03697699,205.34,205.3,0.03547558]
[1739256453860,0.03697699,205.34,205.33,4.8694]
[1739256454553,1.5752,205.47,205.31,8.96769624]
[1739256454754,1.5752,205.47,205.36,8.96769624]
[1739256454953,1.5752,205.47,205.42,4.8672]
[1739256455160,1.5752,205.47,205.36,8.96769624]
[1739256455563,4.8656,205.49,205.36,8.96769624]
[1739256455762,0.03735947,205.44,205.39,0.03494991]
[1739256456860,0.03735947,205.44,205.41,4.8674]
[1739256457367,0.03735947,205.44,205.4,4.8677]
[1739256458263,0.03735947,205.44,205.39,0.03494991]
[1739256459066,0.03735947,205.44,205.4,4.8677]
[1739256460967,0.03735947,205.44,205.39,4.90294991]
[1739256463772,0.03735947,205.44,205.41,4.8674]
[1739256465672,0.03735947,205.44,205.39,0.03494991]
[1739256466974,4.8671,205.43,205.39,0.03494991]
[1739256468279,4.8674,205.42,205.39,0.03494991]
[1739256468480,8.96769624,205.42,205.39,0.03494991]
[1739256469079,4.8675,205.41,205.39,0.03494991]
[1739256469281,8.96769624,205.42,205.39,0.03494991]
[1739256469781,1.53335947,205.44,205.39,0.03494991]
[1739256470181,4.8682,205.39,205.31,4.8697]
[1739256470384,8.96769624,205.39,205.28,54.26230118]
[1739256470585,1.5644,205.38,205.25,2.9105]
[1739256470784,4.869,205.35,205.25,2.9105]
[1739256471484,0.0316019,205.32,205.28,0.03282046]
[1739256473780,4.8699,205.31,205.28,0.03282046]
[1739256474677,0.0316019,205.32,205.28,0.03282046]
[1739256475579,1.6228019,205.32,205.28,0.03282046]
[1739256475985,4.8704,205.29,205.28,0.03282046]
[1739256476485,4.8709,205.27,205.21,4.8723]
[1739256477288,8.96769624,205.3,205.18,8.96769624]
[1739256477483,8.96769624,205.3,205.22,4.872]
[1739256477690,0.03301036,205.26,205.22,0.0337167]
[1739256479185,0.03301036,205.26,205.25,4.8713]
[1739256481985,0.03301036,205.26,205.24,8.96769624]
[1739256481986,1.5674,205.34,205.28,4.8704]
[1739256483290,0.03476937,205.33,205.29,0.0348261]
[1739256483887,0.03476937,205.33,205.3,8.96769624]
[1739256484086,6.937e-05,205.33,205.3,8.96769624]
[1739256484286,2.9721,205.44,205.3,8.96769624]
[1739256484485,4.8671,205.43,205.33,8.96769624]
[1739256484685,2.9721,205.44,205.33,8.96769624]
[1739256484897,2.9721,205.44,205.3,8.96769624]
[1739256485093,4.868,205.39,205.3,8.96769624]
[1739256485289,0.03710978,205.37,205.34,4.8691]
[1739256485497,0.03710978,205.37,205.3,8.96769624]
[1739256485697,0.03710978,205.37,205.33,0.03346752]
[1739256486095,0.03710978,205.37,205.33,4.90286752]
[1739256486600,0.03710978,205.37,205.33,4.90276752]
[1739256487100,0.03710978,205.37,205.33,0.03346752]
[1739256487699,0.03710978,205.37,205.33,4.90286752]
[1739256487899,0.03710978,205.37,205.33,0.03346752]
[1739256488294,0.03710978,205.37,205.33,4.90266752]
[1739256488699,0.03710978,205.37,205.33,9.00116376]
[1739256489104,0.03710978,205.37,205.36,8.96769624]
[1739256489403,0.03710978,205.37,205.33,9.00116376]
[1739256490202,0.03710978,205.37,205.34,4.869]
[1739256490403,0.03710978,205.37,205.33,9.00116376]
[1739256491203,0.03710978,205.37,205.34,4.8691]
[1739256491707,0.03710978,205.37,205.33,0.03346752]
[1739256492003,0.03710978,205.37,205.33,4.90286752]
[1739256492303,0.03710978,205.37,205.33,9.00116376]
[1739256492504,0.03710978,205.37,205.36,4.8687]
[1739256493698,9.78e-06,205.37,205.36,4.8687]
[1739256494003,9.78e-06,205.37,205.36,13.83639624]
[1739256502006,9.78e-06,205.37,205.36,4.8687]
[1739256503312,9.78e-06,205.37,205.33,9.00116376]
[1739256503914,9.78e-06,205.37,205.36,4.8687]
[1739256507611,9.78e-06,205.37,205.36,10.60200815]
[1739256507909,9.78e-06,205.37,205.36,5.73330815]
[1739256511415,9.78e-06,205.37,205.36,10.60200815]
[1739256513114,9.78e-06,205.37,205.36,5.73330815]
[1739256514717,9.78e-06,205.37,205.36,10.60200815]
[1739256515426,9.78e-06,205.37,205.33,0.03346752]
[1739256515917,4.86870978,205.37,205.33,0.03346752]
[1739256516120,9.78e-06,205.37,205.33,0.03346752]
[1739256517116,4.8687,205.36,205.33,0.03346752]
[1739256517321,9.78e-06,205.37,205.33,0.03346752]
[1739256518624,5.73330815,205.36,205.33,0.03346752]
[1739256519823,4.8691,205.35,205.33,0.03346752]
[1739256520026,5.73330815,205.36,205.33,0.03346752]
[1739256521828,4.869,205.35,205.33,0.03346752]
[1739256524730,10.60250815,205.34,205.27,4.8706]
[1739256525230,5.73330815,205.34,205.28,5.73330815]
[1739256525831,0.03392657,205.33,205.29,0.03076202]
[1739256526232,0.03392657,205.33,205.31,4.8698]
[1739256526432,0.03392657,205.33,205.3,5.73330815]
[1739256526834,0.03392657,205.33,205.32,4.8697]
[1739256527530,0.03392657,205.33,205.29,0.03076202]
[1739256531135,1.62082657,205.33,205.29,0.03076202]
[1739256531634,4.90332657,205.33,205.29,0.03076202]
[1739256531837,1.5478,205.4,205.32,5.73330815]
[1739256532034,5.73330815,205.44,205.37,5.73330815]
[1739256532438,5.73330815,205.44,205.37,10.60170815]
[1739256533136,0.03248833,205.43,205.38,0.03365814]
[1739256534840,0.03248833,205.43,205.38,4.90185814]
[1739256535638,0.03248833,205.43,205.38,0.03365814]
[1739256536437,0.03248833,205.43,205.38,4.90185814]
[1739256537135,4.8675,205.41,205.38,0.03365814]
[1739256537535,5.73330815,205.42,205.38,0.03365814]
[1739256537737,10.60060815,205.42,205.38,0.03365814]
[1739256538633,5.73330815,205.42,205.38,0.03365814]
[1739256539638,10.60080815,205.42,205.38,0.03365814]
[1739256539939,5.73330815,205.42,205.38,0.03365814]